bitfinex/quotes_ETHUSD_20250314
["timestamp","ask_amount","ask_price","bid_price","bid_amount"]
[1741975596990,2.49089138,1939.9,1939.5,5.15575]
[1741975597286,0.55,1939.6,1939.2,5.15651]
[1741975597485,5.49089138,1939.7,1939.3,5.15647]
[1741975597787,0.55,1939.6,1939.2,5.15671]
[1741975598090,3.0,1939.3,1938.9,6.37652044]
[1741975598258,0.55,1939.2,1938.6,5.15836]
[1741975598458,9.65,1939.3,1939.1,5.15695]
[1741975598754,9.1,1939.3,1938.5,0.8171]
[1741975598960,3.0,1939.3,1939.2,5.15676]
[1741975599388,3.0,1939.3,1939.1,5.15695]
[1741975599687,3.55,1939.3,1938.8,5.20927127]
[1741975599986,0.55,1939.2,1938.8,5.1577]
[1741975600154,0.55,1939.0,1938.5,5.97547]
[1741975600353,0.55,1939.0,1938.5,0.597547]
[1741975600354,0.55,1938.8,1938.5,0.597547]
[1741975600577,0.55,1938.8,1938.5,5.15847]
[1741975600578,6.65,1938.8,1938.5,5.15847]
[1741975600860,0.55,1938.6,1938.1,5.97663]
[1741975601169,11.80789,1938.8,1938.7,5.15809]
[1741975601170,6.1,1938.8,1938.7,5.15809]
[1741975601374,6.1,1939.4,1939.3,5.15649]
[1741975601606,3.0,1939.3,1939.0,5.15707]
[1741975601755,3.0,1939.3,1938.7,5.673739]
[1741975601961,3.55,1939.3,1939.2,5.15676]
[1741975602162,0.55,1939.2,1938.9,5.15739]
[1741975602376,0.55,1939.2,1938.8,5.15768]
[1741975602570,3.55,1939.0,1938.6,5.15824]
[1741975602800,8.757,1939.0,1938.3,0.8171]
[1741975602968,7.64914138,1938.7,1938.0,5.9368]
[1741975603174,3.0,1938.5,1938.1,5.15969]
[1741975603401,6.1,1938.7,1938.6,5.15836]
[1741975603609,1.2,1939.3,1939.0,5.15712]
[1741975603934,5.227,1939.6,1939.5,5.15596]
[1741975604106,6.1,1940.1,1940.0,5.15463]
[1741975604258,28.375,1940.2,1939.9,5.15472]
[1741975604660,22.275,1940.2,1940.1,5.15437]
[1741975604861,5.231,1940.2,1940.0,5.15455]
[1741975605099,2.49089138,1940.1,1939.4,0.777]
[1741975605310,8.59089138,1940.1,1939.7,5.15532]
[1741975605478,3.0,1940.0,1939.8,5.15501]
[1741975605685,6.1,1940.1,1939.9,5.1549]
[1741975605873,3.0,1940.0,1939.9,5.1549]
[1741975606435,6.1,1940.5,1940.3,5.15379]
[1741975606716,3.0,1940.3,1940.2,5.15409]
[1741975607018,5.231,1940.4,1940.2,5.15391]
[1741975607300,5.231,1940.4,1940.3,5.15384]
[1741975607905,5.231,1940.4,1940.2,5.15391]
[1741975608084,5.231,1940.4,1940.3,5.15384]
[1741975608283,5.231,1940.4,1940.2,5.15391]
[1741975608495,5.231,1940.4,1940.3,5.15384]
[1741975610001,3.0,1940.3,1940.0,5.15441]
[1741975610214,3.0,1940.3,1940.1,5.15424]
[1741975610504,3.0,1940.3,1940.2,5.1541]
[1741975610702,5.231,1940.4,1940.3,5.15384]
[1741975610905,8.231,1940.4,1940.3,5.15384]
[1741975611077,6.1,1940.6,1940.5,5.15331]
[1741975611515,5.221,1940.7,1940.6,5.15304]
[1741975611910,5.221,1940.7,1940.5,5.15331]
[1741975611911,11.325,1941.2,1940.9,5.15224]
[1741975612118,11.325,1941.2,1941.1,5.15171]
[1741975612544,3.0,1941.1,1940.6,5.15278]
[1741975612841,0.55,1941.0,1940.7,5.15267]
[1741975613046,0.55,1941.0,1940.7,5.15266]
[1741975613419,1.730175,1941.0,1940.7,5.15266]
[1741975613620,4.730175,1941.0,1940.7,5.15266]
[1741975614016,4.730175,1941.0,1940.7,10.30532]
[1741975614246,4.730175,1941.0,1940.7,5.15266]
[1741975614452,9.882185,1941.0,1940.6,5.15293]
[1741975614627,4.730175,1941.0,1940.7,5.15277]
[1741975615345,3.0,1941.0,1940.9,5.15224]
[1741975615731,6.1,1941.1,1941.0,5.15198]
[1741975615918,3.0,1941.3,1941.0,10.30396]
[1741975616320,3.0,1941.3,1940.8,0.8228]
[1741975616646,3.0,1941.3,1940.5,5.15315]
[1741975616647,4.432,1941.3,1940.9,5.15223]
[1741975616823,9.58327,1941.3,1940.9,5.15223]
[1741975617020,14.73465,1941.3,1940.9,5.15223]
[1741975617547,5.15153,1941.2,1940.9,5.15223]
[1741975617763,1.47348,1941.2,1940.9,5.15223]
[1741975618049,4.432,1941.3,1940.8,5.15251]
[1741975618254,8.15122,1941.3,1941.0,5.15172]
[1741975619753,8.15122,1941.3,1941.0,5.15198]
[1741975620254,3.0,1941.3,1941.1,5.15154]
[1741975620565,3.0,1941.3,1941.1,5.15161]
[1741975620934,0.55,1941.2,1940.8,5.15251]
[1741975621461,5.70156,1941.2,1940.8,5.15251]
[1741975621770,5.15249,1940.9,1940.5,5.97585]
[1741975621928,3.0,1940.6,1940.2,0.7912]
[1741975622127,3.0,1940.6,1940.4,5.15335]
[1741975622374,3.0,1940.6,1940.4,10.30681]
[1741975622767,3.0,1940.6,1940.4,5.15335]
[1741975623260,3.0,1940.6,1940.5,5.15331]
[1741975624251,6.1,1940.7,1940.6,5.15304]
[1741975625053,9.1,1940.7,1940.3,5.15377]
[1741975625251,3.0,1940.6,1940.5,5.15331]
[1741975626469,3.0,1940.6,1940.4,5.15347]
[1741975626680,3.0,1940.6,1940.4,10.30694]
[1741975627045,3.91,1940.6,1940.2,5.15609883]
[1741975627246,5.15343,1940.5,1940.2,0.00224883]
[1741975627469,3.55,1940.5,1940.2,0.00224883]
[1741975627767,3.55,1940.5,1940.2,5.15624883]
[1741975628788,8.70336,1940.5,1940.2,0.00224883]
[1741975629077,3.0,1940.4,1940.2,0.00224883]
[1741975629576,3.36122738,1940.4,1940.2,0.00224883]
[1741975629784,9.35384,1940.3,1940.2,0.00224883]
[1741975629970,15.45384,1940.3,1940.2,0.00224883]
[1741975630966,10.3,1940.3,1940.2,0.00224883]
[1741975631661,0.65,1940.7,1940.5,5.15331]
[1741975631868,11.333,1940.8,1940.7,5.15277]
[1741975631869,6.1,1940.8,1940.7,5.15277]
[1741975632178,5.245,1940.9,1940.8,5.15251]
[1741975632380,8.80182,1941.1,1940.7,5.1527]
[1741975632677,13.95368,1941.1,1940.7,5.15267]
[1741975632866,8.80182,1941.1,1940.7,10.30527]
[1741975633176,8.80182,1941.1,1940.5,1.319831]
[1741975633177,3.0,1941.1,1940.8,5.15237]
[1741975633377,11.348,1941.2,1940.9,5.15215]
[1741975633581,3.0,1941.1,1940.9,5.15215]
[1741975633948,3.0,1941.1,1940.9,5.15201]
[1741975634171,6.75,1941.7,1941.0,5.95648]
[1741975634359,6.75,1941.7,1941.1,5.15171]
[1741975634360,11.992,1941.7,1941.1,5.15171]
[1741975634558,3.55,1941.6,1941.2,5.15134]
[1741975634777,8.1504,1941.6,1941.2,5.15134]
[1741975635276,3.0,1941.3,1941.0,5.15194]
[1741975635479,3.0,1941.3,1940.7,5.15256]
[1741975635480,5.15183,1941.1,1940.7,5.15256]
[1741975635694,8.15183,1941.1,1940.7,10.78540729]
[1741975635849,3.0,1941.1,1940.7,0.48027729]
[1741975636054,3.0,1941.1,1940.9,5.15201]
[1741975636261,3.0,1941.1,1941.0,0.515201]
[1741975636461,3.0,1941.1,1940.8,5.15249]
[1741975636679,3.0,1941.1,1940.9,5.15222]
[1741975636884,3.0,1941.1,1941.0,5.15198]
[1741975637081,5.243,1941.2,1941.0,5.15198]
[1741975637281,6.1,1941.4,1941.1,5.15171]
[1741975637486,11.25104,1941.4,1941.0,5.15198]
[1741975637692,5.15138,1941.3,1940.9,5.15223]
[1741975637986,5.1519,1941.1,1940.7,5.15263]
[1741975638149,5.1519,1941.1,1940.6,5.15304]
[1741975638351,5.1519,1941.1,1940.5,1.286131]
[1741975638352,5.15236,1940.9,1940.5,1.286131]
[1741975638580,10.41307,1941.0,1940.5,5.92384]
[1741975638769,10.41307,1941.0,1940.6,5.15301]
[1741975639154,10.41301,1941.0,1940.6,5.15301]
[1741975639355,10.41301,1941.0,1940.5,5.92409]
[1741975639555,10.41301,1941.0,1940.4,5.15356]
[1741975639556,10.30531,1940.8,1940.4,5.15356]
[1741975639754,5.15251,1940.8,1940.3,6.01915229]
[1741975639950,5.15251,1940.8,1940.4,5.15351]
[1741975640155,3.04089138,1940.9,1940.3,0.38465723]
[1741975640383,9.79931043,1940.9,1940.6,5.15304]
[1741975640586,9.79931043,1940.9,1940.5,5.15318]
[1741975640760,9.79931043,1940.9,1940.5,5.15317]
[1741975641073,4.64702043,1940.9,1940.6,5.15299]
[1741975641282,3.04089138,1940.9,1940.5,5.15324]
[1741975641486,8.19323138,1940.9,1940.5,5.15324]
[1741975641690,3.04089138,1940.9,1940.4,5.15351]
[1741975641894,5.15262,1940.8,1940.4,5.15351]
[1741975642259,0.55,1940.7,1940.2,5.92700883]
[1741975642475,5.15313,1940.6,1940.2,5.15620883]
[1741975642805,10.41148,1940.5,1940.2,0.00224883]
[1741975642971,11.19473138,1940.3,1940.2,0.00224883]
[1741975643171,17.29473138,1940.3,1940.2,0.00224883]
[1741975643375,19.53957652,1940.3,1940.2,0.00224883]
[1741975644169,20.2495602,1940.3,1940.2,8.83e-06]
[1741975644369,8.7057,1939.6,1939.5,0.48144766]
[1741975644694,22.62357506,1939.6,1939.5,8.34e-06]
[1741975644894,23.98450199,1939.6,1939.5,8.34e-06]
[1741975645198,3.0,1938.6,1938.2,5.15931]
[1741975645397,3.0,1938.6,1938.1,0.7726]
[1741975645700,3.0,1938.6,1938.3,5.15902]
[1741975645882,3.0,1938.6,1938.3,5.15903]
[1741975646483,3.0,1938.6,1938.3,10.31798]
[1741975646688,3.0,1938.6,1938.4,5.15883]
[1741975646861,11.37,1938.8,1938.7,5.15809]
[1741975647062,8.274,1939.0,1938.9,5.15737]
[1741975647292,8.274,1939.0,1938.6,0.8234]
[1741975647502,8.274,1939.0,1938.7,5.15787]
[1741975647797,5.274,1939.0,1938.9,5.15756]
[1741975648404,3.0,1939.2,1938.9,5.15756]
[1741975648405,5.273,1939.4,1939.0,5.15714]
[1741975648574,3.0,1939.3,1939.0,5.15714]
[1741975648767,0.05998368,1939.6,1939.5,5.15596]
[1741975649018,11.25451,1940.1,1939.6,5.15555]
[1741975649229,3.0,1940.0,1939.6,10.31105]
[1741975649403,3.0,1940.0,1939.7,5.15539]
[1741975649726,6.1,1940.1,1940.0,5.15463]
[1741975649928,5.31,1940.3,1940.0,5.15463]
[1741975650226,0.55,1940.4,1940.0,5.15442]
[1741975650522,3.55,1940.4,1940.1,5.15434]
[1741975650731,2.563747,1940.4,1940.1,5.15434]
[1741975650902,7.717437,1940.4,1940.0,10.30889]
[1741975651107,3.0,1940.3,1940.0,10.30889]
[1741975651309,3.0,1940.3,1940.1,5.15435]
[1741975652234,5.15439,1940.1,1939.7,5.15543]
[1741975652733,3.0,1939.7,1939.4,5.15618]
[1741975653231,3.0,1939.7,1939.4,5.15604]
[1741975653545,3.0,1939.7,1939.5,5.15592]
[1741975655408,3.0,1939.7,1939.5,5.1558]
[1741975655602,3.0,1939.7,1939.5,10.31158]
[1741975655809,8.15491,1939.9,1939.6,5.1557]
[1741975656020,15.294515,1939.9,1939.5,5.15594]
[1741975656248,10.139365,1939.9,1939.5,5.15594]
[1741975656639,4.984455,1939.9,1939.6,5.15564]
[1741975656967,3.0,1939.9,1939.7,5.15518]
[1741975657128,5.335,1940.0,1939.9,5.1549]
[1741975657327,11.12792,1940.3,1939.9,5.1549]
[1741975657524,0.65,1940.3,1940.0,5.1546]
[1741975657742,13.47874,1940.4,1940.0,5.1546]
[1741975657944,5.70385,1940.3,1940.0,5.1546]
[1741975658143,5.15385,1940.3,1940.0,5.1546]
[1741975658346,5.15411,1940.2,1939.8,5.15516]
[1741975658543,5.15455,1940.1,1939.6,5.15568]
[1741975658755,0.55,1940.0,1939.7,5.15529]
[1741975658938,0.55,1940.0,1939.4,6.00847454]
[1741975658939,0.55,1940.0,1939.8,5.155]
[1741975659143,6.1,1940.1,1939.8,5.15498]
[1741975659469,6.1,1940.1,1939.9,5.15478]
[1741975659668,9.1,1940.1,1940.0,5.15463]
[1741975659843,3.0,1940.1,1940.0,5.15463]
[1741975660367,3.3,1940.1,1939.7,5.15521]
[1741975660569,5.70465,1940.0,1939.7,5.15521]
[1741975660764,3.55,1940.0,1939.7,5.15521]
[1741975662571,8.328,1940.2,1939.9,5.15478]
[1741975662767,10.546592,1940.2,1939.9,5.15478]
[1741975663261,10.546592,1940.2,1939.9,5.15474]
[1741975663668,15.700782,1940.2,1939.8,5.15513]
[1741975663966,6.75,1940.4,1939.7,5.15539]
[1741975663967,6.75,1940.4,1939.9,5.15472]
[1741975664172,5.32,1940.3,1940.1,5.15434]
[1741975664471,6.75,1940.4,1940.2,5.15405]
[1741975664472,6.1,1940.4,1940.2,5.15405]
[1741975664772,5.80294,1940.7,1940.2,5.669325]
[1741975664966,3.0,1940.6,1940.3,5.15369]
[1741975665167,17.23128,1940.9,1940.2,0.05153587]
[1741975665466,3.0,1940.7,1940.5,5.15318]
[1741975665773,3.0,1940.8,1940.6,5.15304]
[1741975665941,17.23128,1940.9,1940.5,5.15318]
[1741975666141,21.175108,1940.9,1940.5,5.15318]
[1741975666373,16.022828,1940.9,1940.2,5.15391]
[1741975666672,5.15277,1940.7,1940.3,5.15379]
[1741975666866,8.70253,1940.8,1940.4,5.15351]
[1741975666867,8.15259,1940.8,1940.4,5.15351]
[1741975667073,5.70279,1940.7,1940.4,5.15344]
[1741975667365,5.15313,1940.6,1940.3,5.15375]
[1741975667575,7.02714321,1940.7,1940.3,10.30743]
[1741975667978,12.18009321,1940.7,1940.3,5.15368]
[1741975668286,3.0,1940.6,1940.3,10.30737]
[1741975668576,3.0,1940.6,1940.3,5.15368]
[1741975668962,9.67115032,1940.6,1940.2,5.15396]
[1741975669278,9.67115032,1940.6,1940.3,5.15381]
[1741975669649,1.51801032,1940.6,1940.4,5.15348]
[1741975670286,8.70287,1940.7,1940.3,5.15381]
[1741975670580,8.70287,1940.7,1940.3,10.30748]
[1741975670788,0.55,1940.7,1940.1,5.15427]
[1741975670957,5.7041,1940.2,1939.7,0.7619]
[1741975671156,0.55,1939.8,1939.4,5.15609]
[1741975671367,3.0,1940.0,1939.7,5.15529]
[1741975671627,8.346,1940.0,1939.7,5.15529]
[1741975671751,5.15501,1939.9,1939.2,5.90984]
[1741975671945,5.15501,1939.9,1939.5,5.15586]
[1741975672150,5.15501,1939.9,1939.3,5.1564]
[1741975672151,5.15555,1939.7,1939.3,5.1564]
[1741975672351,3.0,1939.9,1939.6,5.15559]
[1741975672583,3.0,1939.9,1939.4,5.15598]
[1741975672584,8.15509,1939.9,1939.4,5.15598]
[1741975672882,3.0,1939.7,1939.4,5.15598]
[1741975673178,3.0,1939.7,1939.5,5.15582]
[1741975673379,3.0,1939.7,1939.5,5.15587]
[1741975673562,3.0,1939.7,1939.4,5.15614]
[1741975673764,8.15555,1939.7,1939.3,5.15633]
[1741975673959,5.15632,1939.4,1938.9,5.15756]
[1741975674176,5.15661,1939.3,1938.9,5.15751]
[1741975674374,5.15661,1939.3,1938.9,5.15747]
[1741975674778,5.15679,1939.2,1938.8,11.11385]
[1741975675084,5.15679,1939.2,1938.8,5.95604]
[1741975675281,5.15679,1939.2,1938.8,5.9561]
[1741975675490,5.737469,1939.2,1938.8,5.1577]
[1741975675690,5.737469,1939.2,1938.8,10.31534]
[1741975675913,3.580679,1939.2,1938.9,5.15732]
[1741975676063,3.0,1939.4,1938.6,5.15826]
[1741975676384,7.3,1939.6,1939.4,5.15611]
[1741975676591,3.0,1939.5,1939.2,5.15675]
[1741975676779,8.15611,1939.5,1939.1,5.15689]
[1741975676976,10.152291,1939.5,1939.1,5.15689]
[1741975677152,3.0,1939.2,1938.9,10.31485]
[1741975677358,3.0,1939.2,1938.9,5.15735]
[1741975677760,3.0,1939.2,1938.8,5.15781]
[1741975678068,3.0,1939.2,1938.9,5.15747]
[1741975678270,8.972489,1939.2,1938.8,5.15776]
[1741975678677,3.0,1939.2,1938.8,5.15771]
[1741975678876,3.0,1939.2,1938.9,5.15734]
[1741975679080,5.80667,1939.3,1938.9,5.15734]
[1741975679292,3.0,1939.2,1938.9,5.15734]
[1741975679987,5.15679,1939.2,1938.9,5.15734]
[1741975680194,8.15679,1939.2,1938.8,10.31546]
[1741975680560,8.15679,1939.2,1938.8,10.31535]
[1741975680761,3.0,1939.2,1938.9,5.15752]
[1741975681177,3.0,1939.2,1938.9,10.31493]
[1741975681396,3.0,1939.2,1938.9,5.15741]
[1741975681580,8.15677,1939.2,1938.9,5.15741]
[1741975682161,3.0,1939.2,1938.9,10.31486]
[1741975684385,9.582216,1939.3,1938.8,5.15781]
[1741975684570,3.0,1939.1,1938.8,5.15781]
[1741975684891,3.0,1939.1,1938.8,10.31553]
[1741975685093,3.0,1939.3,1939.1,5.15693]
[1741975685291,3.0,1939.3,1939.2,5.15676]
[1741975685493,3.0,1939.4,1939.2,5.15676]
[1741975686498,0.53952494,1939.7,1939.6,5.1557]
[1741975686818,3.0,1939.7,1939.4,5.15614]
[1741975687171,5.15576,1939.6,1939.2,5.15674]
[1741975687394,5.15576,1939.6,1939.2,5.15662]
[1741975687603,3.0,1939.4,1939.1,5.15699]
[1741975687913,3.0,1939.4,1939.1,5.15691]
[1741975688208,3.0,1939.4,1939.2,5.1566]
[1741975688411,3.0,1939.4,1939.1,5.15701]
[1741975688567,5.1565,1939.3,1938.9,5.93797]
[1741975688768,5.1565,1939.3,1938.9,5.15747]
[1741975689066,10.31388,1939.2,1938.8,5.15775]
[1741975689514,5.1569,1939.2,1938.8,5.15775]
[1741975689728,5.15706,1939.1,1938.8,5.15775]
[1741975689870,5.15774,1938.9,1938.5,5.1586]
[1741975690071,3.0,1938.8,1938.5,5.15845]
[1741975690300,3.0,1938.8,1938.5,10.3169]
[1741975690501,0.55,1938.7,1938.3,5.15902]
[1741975690672,3.0,1938.7,1938.4,5.15887]
[1741975691016,3.0,1938.7,1938.3,5.15913]
[1741975691229,8.1581,1938.7,1938.4,5.15879]
[1741975691376,3.0,1938.7,1938.5,5.15859]
[1741975691581,13.52187,1939.2,1938.8,5.15758]
[1741975691822,6.509257,1939.1,1938.7,5.15797]
[1741975691993,8.15768,1938.9,1938.5,10.31703]
[1741975692183,6.1,1939.1,1938.9,5.15735]
[1741975692383,3.0,1939.1,1938.9,5.15735]
[1741975692610,3.0,1939.1,1938.6,5.15833]
[1741975693016,3.0,1939.1,1938.8,5.15781]
[1741975693017,8.15727,1939.1,1938.8,5.15781]
[1741975693304,8.15715,1939.1,1938.8,5.1578]
[1741975693809,3.0,1938.9,1938.6,5.15835]
[1741975693973,3.0,1938.9,1938.6,5.15818]
[1741975694177,5.15793,1938.8,1938.4,5.93327]
[1741975694407,3.0,1938.7,1938.4,5.15877]
[1741975694586,3.0,1938.7,1938.3,5.15889]
[1741975694587,8.1581,1938.7,1938.3,5.15908]
[1741975695410,5.15845,1938.6,1938.3,5.15908]
[1741975695905,8.1581,1938.7,1938.3,5.15908]
[1741975696204,3.0,1938.7,1938.4,5.1587]
[1741975696412,3.0,1938.7,1938.3,6.190787]
[1741975696714,3.0,1938.7,1938.5,5.15849]
[1741975697405,0.55,1939.0,1938.5,5.15849]
[1741975697406,0.65,1939.0,1938.5,0.828385]
[1741975697603,0.65,1939.0,1938.6,5.15818]
[1741975697906,0.65,1939.0,1938.8,5.15766]
[1741975698123,6.1,1939.1,1938.9,10.31499]
[1741975698279,11.459,1939.3,1939.1,5.1569]
[1741975698988,11.459,1939.3,1939.0,5.15727]
[1741975699309,6.1,1939.3,1939.0,5.1571]
[1741975700206,3.0,1939.4,1939.2,5.15676]
[1741975700408,3.65,1939.6,1939.3,10.3127]
[1741975700711,6.1,1939.7,1939.1,0.05156498]
[1741975701010,6.1,1939.7,1939.4,5.15614]
[1741975701716,6.1,1939.7,1939.5,5.15596]
[1741975702684,5.15582,1939.6,1939.2,5.15663]
[1741975702885,5.80605,1939.5,1939.2,5.15663]
[1741975703302,0.65,1939.5,1939.2,5.15663]
[1741975703509,0.65,1939.5,1939.2,10.3132]
[1741975703686,3.65,1939.5,1939.3,5.15645]
[1741975704087,3.0,1939.5,1939.3,5.15639]
[1741975704387,3.0,1939.5,1939.3,5.15634]
[1741975704782,3.0,1939.5,1939.3,5.15636]
[1741975705020,3.0,1939.5,1939.3,6.08279313]
[1741975705331,10.31006,1939.9,1939.7,5.15532]
[1741975705332,6.1,1939.9,1939.7,5.15532]
[1741975705525,3.0,1939.9,1939.7,10.3106]
[1741975705703,6.75,1940.3,1939.5,0.05155269]
[1741975705903,6.1,1940.3,1940.1,5.15424]
[1741975706103,5.15397,1940.3,1939.9,5.15486]
[1741975706497,8.15375,1940.4,1939.9,5.15473]
[1741975706692,3.0,1940.4,1939.8,5.15494]
[1741975707015,0.3,1940.3,1940.1,5.15432]
[1741975707222,3.0,1940.4,1940.2,5.15389]
[1741975707522,8.1537,1940.4,1940.0,5.15449]
[1741975707738,13.3075,1940.4,1940.0,5.15449]
[1741975707895,5.15385,1940.3,1940.0,5.15449]
[1741975708097,5.15385,1940.3,1939.8,5.1551]
[1741975708329,5.669535,1940.2,1939.8,5.1551]
[1741975708524,5.669535,1940.2,1939.8,10.31012]
[1741975708726,0.515385,1940.2,1939.9,5.15477]
[1741975709044,0.55,1940.3,1940.0,5.15451]
[1741975709329,5.15414,1940.2,1939.8,5.15516]
[1741975710120,5.15414,1940.2,1939.8,10.31014]
[1741975710319,5.70384,1940.3,1939.9,5.15485]
[1741975710518,5.70384,1940.3,1939.9,5.15479]
[1741975710721,7.089583,1940.3,1939.9,5.15479]
[1741975710919,5.80473,1940.0,1939.5,5.15596]
[1741975711116,5.15501,1939.9,1939.1,5.9899919]
[1741975711320,5.15524,1939.8,1939.4,5.15609]
[1741975711524,5.15524,1939.8,1939.3,5.15642]
[1741975711833,5.15524,1939.8,1939.2,5.15665]
[1741975711834,5.15573,1939.6,1939.2,5.15665]
[1741975712135,3.0,1939.5,1939.2,5.15665]
[1741975712308,3.0,1939.5,1939.1,5.15701]
[1741975712309,8.80597,1939.5,1939.1,5.15692]
[1741975713314,3.65,1939.5,1939.3,5.15643]
[1741975713516,4.065524,1939.7,1939.4,5.15622]
[1741975713728,4.065524,1939.7,1939.4,10.31227]
[1741975714034,3.0,1939.7,1939.6,5.1557]
[1741975714334,6.1,1939.8,1939.6,5.1557]
[1741975714534,6.1,1939.8,1939.6,10.31129]
[1741975714734,9.1,1939.8,1939.7,5.15543]
[1741975714931,6.1,1939.8,1939.7,5.15543]
[1741975715338,5.80423,1940.2,1939.7,10.31086]
[1741975715339,3.0,1940.0,1939.7,10.31086]
[1741975715526,3.0,1940.0,1939.7,5.15543]
[1741975715836,3.0,1940.0,1939.5,5.92152]
[1741975715837,9.485545,1940.0,1939.6,5.1556]
[1741975716332,3.0,1939.8,1939.5,5.15572]
[1741975716740,3.0,1939.8,1939.6,5.15556]
[1741975717137,3.0,1939.8,1939.5,5.15572]
[1741975717313,3.0,1939.8,1939.6,5.15569]
[1741975717815,3.0,1939.8,1939.6,10.31109]
[1741975718022,3.0,1939.8,1939.5,5.15596]
[1741975718341,3.0,1939.8,1939.5,10.31178]
[1741975718537,9.620812,1939.8,1939.4,5.1562]
[1741975718721,19.30666,1939.8,1939.4,5.1562]
[1741975718921,5.1555,1939.7,1939.4,5.1562]
[1741975719121,10.31112,1939.7,1939.3,5.15647]
[1741975719317,5.15574,1939.6,1939.2,5.15675]
[1741975719542,3.65,1939.4,1938.7,0.7702]
[1741975719750,3.65,1939.4,1938.6,5.15827]
[1741975719751,3.0,1938.9,1938.6,5.15827]
[1741975719923,13.31523,1938.9,1938.5,5.15844]
[1741975720242,8.15766,1938.9,1938.5,5.15842]
[1741975720418,3.0,1938.9,1938.6,5.15815]
[1741975720616,3.0,1938.9,1938.7,5.15785]
[1741975721018,3.0,1938.9,1938.8,5.15782]
[1741975721524,3.0,1938.9,1938.7,5.15785]
[1741975723513,3.0,1938.9,1938.7,10.31578]
[1741975723708,3.0,1938.9,1938.7,5.15785]
[1741975723914,6.1,1939.1,1939.0,5.15729]
[1741975724175,2.49415946,1939.7,1939.1,5.15702]
[1741975724176,12.1,1939.7,1939.1,5.15702]
[1741975724341,5.15517,1939.8,1939.5,5.15594]
[1741975724513,3.0,1939.8,1939.5,5.15594]
[1741975724718,3.65,1939.9,1939.7,5.15543]
[1741975725019,0.65,1940.2,1939.6,5.15557]
[1741975725226,5.15441,1940.1,1939.7,10.31064]
[1741975725831,0.65,1940.2,1940.1,5.15437]
[1741975726017,6.1,1940.3,1940.0,5.1546]
[1741975726418,6.1,1940.3,1940.0,10.30909]
[1741975726631,6.1,1940.3,1940.1,5.15437]
[1741975726814,6.1,1940.3,1940.0,5.15451]
[1741975727013,6.1,1940.3,1940.0,10.30902]
[1741975727217,6.1,1940.3,1940.1,5.15434]
[1741975727718,9.1,1940.3,1940.2,5.1541]
[1741975728043,9.1,1940.3,1940.1,5.15434]
[1741975729546,14.25399,1940.3,1939.9,5.15478]
[1741975729851,14.25399,1940.3,1939.9,10.30949]
[1741975730047,9.1,1940.3,1939.9,5.15471]
[1741975730350,9.1,1940.3,1940.0,5.15453]
[1741975730939,9.1,1940.3,1940.0,5.15447]
[1741975731555,14.25387,1940.3,1939.9,5.1549]
[1741975731852,0.65,1940.1,1939.8,5.15515]
[1741975732054,3.65,1940.1,1939.8,5.15502]
[1741975732259,8.80438,1940.1,1939.8,5.15502]
[1741975732432,0.65,1940.1,1939.8,5.15502]
[1741975732624,0.65,1940.1,1940.0,5.15463]
[1741975732820,3.0,1940.2,1940.0,5.15463]
[1741975733021,4.7378305,1940.2,1939.9,5.15472]
[1741975733222,3.0,1940.2,1939.9,5.15472]
[1741975733524,3.0,1940.2,1939.9,10.30944]
[1741975733723,3.0,1940.2,1940.0,5.15453]
[1741975733951,3.0,1940.2,1940.0,5.15446]
[1741975734447,5.15459,1940.1,1939.7,5.1554]
[1741975734630,5.155,1939.9,1939.6,5.15569]
[1741975734826,5.805,1939.9,1939.6,5.15569]
[1741975735151,3.65,1939.9,1939.6,5.15567]
[1741975735523,0.65,1940.2,1939.5,0.05155556]
[1741975735862,14.14219,1940.2,1939.8,5.15508]
[1741975736026,1.414219,1940.1,1939.8,5.15508]
[1741975736419,6.568619,1940.1,1939.8,5.15508]
[1741975736854,6.568619,1940.1,1939.6,5.15565]
[1741975737024,3.0,1939.9,1939.6,5.15559]
[1741975737225,4.414219,1940.1,1939.8,5.15517]
[1741975737445,4.414219,1940.1,1939.9,5.15481]
[1741975737727,4.414219,1940.1,1939.8,5.15517]
[1741975737927,4.414219,1940.1,1939.8,5.15506]
[1741975738138,4.414219,1940.1,1939.8,5.15503]
[1741975738339,4.414219,1940.1,1939.8,10.31006]
[1741975738539,4.414219,1940.1,1939.8,5.15503]
[1741975739463,0.4414219,1940.0,1939.8,5.15503]
[1741975740050,4.414219,1940.1,1939.9,5.15485]
[1741975740259,3.0,1940.1,1939.9,5.15485]
[1741975740762,3.0,1940.1,1939.8,5.15503]
[1741975741254,3.0,1940.1,1939.8,10.31005]
[1741975741447,3.0,1940.1,1939.9,5.15489]
[1741975741632,3.0,1940.1,1939.8,5.15502]
[1741975741836,4.414222,1940.1,1939.8,5.15502]
[1741975742345,8.324,1940.2,1940.0,5.15458]